bitfinex/quotes_BTCUSD_20250802
["timestamp","ask_amount","ask_price","bid_price","bid_amount"]
[1754100856575,0.2881641,113910.0,113900.0,1.25668817]
[1754100856776,0.4218441,113910.0,113900.0,1.25668817]
[1754100856974,0.33764421,113910.0,113900.0,1.34088806]
[1754100857176,0.028387,113910.0,113900.0,1.34088806]
[1754100857359,0.002,113910.0,113900.0,1.34088806]
[1754100858249,0.001,113910.0,113900.0,1.34088806]
[1754100859190,0.34412879,113920.0,113900.0,1.34088806]
[1754100859402,0.42832868,113920.0,113910.0,0.59058397]
[1754100859614,0.42832868,113920.0,113910.0,0.62286397]
[1754100859829,0.42832868,113920.0,113910.0,0.64812721]
[1754100860030,0.29464868,113920.0,113910.0,0.64812721]
[1754100860256,0.42832868,113920.0,113910.0,0.05754324]
[1754100860500,0.42932868,113920.0,113910.0,0.64812721]
[1754100860951,0.42832868,113920.0,113910.0,0.64812721]
[1754100861168,0.43130868,113920.0,113910.0,0.05754324]
[1754100861382,0.17557721,113910.0,113900.0,0.6609742]
[1754100861592,0.90182118,113910.0,113900.0,0.5272942]
[1754100862574,0.90182118,113910.0,113900.0,0.5282942]
[1754100862777,0.31123721,113910.0,113900.0,0.5282942]
[1754100864713,0.33762421,113910.0,113900.0,0.5282942]
[1754100865886,0.67762421,113910.0,113900.0,0.5313242]
[1754100868436,0.67564421,113910.0,113900.0,0.5333942]
[1754100876835,0.47817252,113910.0,113900.0,0.5333942]
[1754100877526,0.65374973,113910.0,113900.0,0.5333942]
[1754100879546,0.65374973,113910.0,113900.0,0.60010162]
[1754100879720,0.65374973,113910.0,113900.0,0.5333942]
[1754100889557,0.64925721,113910.0,113900.0,0.5333942]
[1754100896217,0.64925721,113910.0,113900.0,1.12410705]
[1754100902035,0.51557721,113910.0,113900.0,1.12410705]
[1754100903381,0.64921721,113910.0,113900.0,1.12410705]
[1754100908319,0.30921721,113910.0,113900.0,1.12410705]
[1754100908748,0.30921721,113910.0,113900.0,0.5333942]
[1754100908942,0.30921721,113910.0,113900.0,1.12410705]
[1754100909929,0.30921721,113910.0,113900.0,0.5333942]
[1754100910131,0.30921721,113910.0,113900.0,1.12410705]
[1754100914640,0.30921721,113910.0,113900.0,1.20830694]
[1754100914853,0.30921721,113910.0,113900.0,1.12410705]
[1754100915222,0.30921721,113910.0,113900.0,1.25774705]
[1754100919135,1.00355897,113910.0,113900.0,0.5011442]
[1754100919373,1.00355897,113910.0,113900.0,0.5298242]
[1754100922197,1.34355897,113910.0,113900.0,0.5298242]
[1754100922659,1.42775886,113910.0,113900.0,0.5298242]
[1754100923711,1.45414886,113910.0,113900.0,0.5298242]
[1754100924293,0.86343601,113910.0,113900.0,0.5298242]
[1754100924470,1.45414886,113910.0,113900.0,0.5298242]
[1754100924686,1.45414886,113910.0,113900.0,0.5288242]
[1754100925092,1.45514886,113910.0,113900.0,0.5001442]
[1754100925301,1.45614886,113910.0,113900.0,0.5001442]
[1754100925727,1.45614886,113910.0,113900.0,0.5267842]
[1754100929993,1.45761886,113910.0,113900.0,0.5001442]
[1754100930385,1.45614886,113910.0,113900.0,0.5001442]
[1754100930793,1.45614886,113910.0,113900.0,0.5267842]
[1754100935808,0.86543601,113910.0,113900.0,0.5267842]
[1754100936013,1.45614886,113910.0,113900.0,0.5267842]
[1754100936185,1.46988669,113910.0,113900.0,0.5267842]
[1754100938446,1.46988669,113910.0,113900.0,0.5297742]
[1754100938447,0.87917384,113910.0,113900.0,0.5297742]
[1754100938646,1.46988669,113910.0,113900.0,0.5297742]
[1754100939968,1.3856868,113910.0,113900.0,0.5297742]
[1754100940402,1.3856868,113910.0,113900.0,0.5319242]
[1754100944226,0.79497395,113910.0,113900.0,0.5319242]
[1754100944476,1.3856868,113910.0,113900.0,0.5319242]
[1754100948274,1.6856868,113910.0,113900.0,0.5001442]
[1754100948485,2.37056954,113910.0,113900.0,0.5001442]
[1754100948818,2.38954885,113910.0,113900.0,0.47077002]
[1754100948994,7.38954885,113910.0,113900.0,0.47077002]
[1754100949204,7.37581102,113910.0,113900.0,0.47077002]
[1754100949568,7.37481102,113910.0,113900.0,0.47077002]
[1754100950409,7.37381102,113910.0,113900.0,0.46162016]
[1754100950582,7.37581102,113910.0,113900.0,0.44345341]
[1754100950804,7.37581102,113910.0,113900.0,0.42798432]
[1754100951200,7.37781102,113910.0,113900.0,0.42798432]
[1754100951414,7.37381102,113910.0,113900.0,0.42798432]
[1754100951811,7.37681102,113910.0,113900.0,0.42798432]
[1754100951997,7.39055023,113910.0,113900.0,0.41305484]
[1754100952198,7.39055023,113910.0,113900.0,0.39386158]
[1754100952410,7.39255023,113910.0,113900.0,0.3799188]
[1754100952770,7.39255023,113910.0,113900.0,0.31972615]
[1754100953354,7.43160102,113910.0,113900.0,0.31972615]
[1754100955640,7.42310102,113910.0,113900.0,0.31972615]
[1754100957602,7.4368402,113910.0,113900.0,0.31972615]
[1754100958718,2.4368402,113910.0,113900.0,0.31972615]
[1754100958927,7.4368402,113910.0,113900.0,0.31972615]
[1754100959326,7.4353702,113910.0,113900.0,0.31972615]
[1754100960593,7.4438702,113910.0,113900.0,0.31972615]
[1754100963015,0.32560804,113890.0,113880.0,0.10073334]
[1754100963227,1.22026067,113890.0,113880.0,0.10081751]
[1754100963660,1.2340007,113890.0,113880.0,0.10296751]
[1754100964067,1.2320207,113890.0,113880.0,0.10296751]
[1754100964285,1.2594187,113890.0,113880.0,0.10296751]
[1754100965939,1.2594187,113890.0,113880.0,0.03292417]
[1754100967469,1.24567867,113890.0,113880.0,0.03292417]
[1754100969202,0.65496582,113890.0,113880.0,0.03292417]
[1754100969418,1.24567867,113890.0,113880.0,0.03292417]
[1754100970066,0.52140582,113890.0,113880.0,0.03292417]
[1754100970289,0.28720593,113890.0,113880.0,1.21434987]
[1754100970506,0.21871989,113890.0,113880.0,1.21434987]
[1754100970733,0.001,113890.0,113880.0,1.21434987]
[1754100970954,0.026391,113900.0,113880.0,1.21434987]
[1754100971164,0.08419989,113900.0,113890.0,0.69144619]
[1754100971380,0.08419989,113900.0,113890.0,0.82711619]
[1754100972729,0.31787607,113910.0,113890.0,0.82711619]
[1754100972974,0.40207596,113910.0,113900.0,0.52494932]
[1754100973224,0.40207596,113910.0,113900.0,0.55778932]
[1754100975577,0.40207596,113910.0,113900.0,0.55878932]
[1754100978265,0.40207596,113910.0,113900.0,0.55978932]
[1754100978512,0.40207596,113910.0,113900.0,0.03484]
[1754100978714,0.47835634,113910.0,113900.0,0.03484]
[1754100979125,0.47831634,113910.0,113900.0,0.03484]
[1754100980463,0.49774536,113910.0,113900.0,0.02956]
[1754100980815,0.52413536,113910.0,113900.0,0.02956]
[1754100981015,0.52413536,113910.0,113900.0,0.03269]
[1754100982628,0.52413536,113910.0,113900.0,0.03484]
[1754100982943,0.44587498,113910.0,113900.0,0.03484]
[1754100986806,0.44485659,113910.0,113900.0,0.03484]
[1754100988259,0.23528912,113910.0,113900.0,0.03484]
[1754100988885,0.41089498,113910.0,113900.0,0.03484]
[1754100989099,0.42165384,113910.0,113900.0,0.02956]
[1754100990217,0.42165384,113910.0,113900.0,0.03252]
[1754100991946,0.42165384,113910.0,113900.0,0.03452]
[1754100992432,0.42165384,113910.0,113900.0,0.02956]
[1754100992655,0.43813304,113910.0,113900.0,0.002]
[1754100992885,0.43567304,113910.0,113900.0,0.002]
[1754100993107,0.43567304,113910.0,113900.0,0.03075]
[1754100993580,0.42716877,113910.0,113900.0,0.03075]
[1754100996487,0.42716877,113910.0,113900.0,0.03371]
[1754101001123,0.42716877,113910.0,113900.0,0.62442559]
[1754101001538,0.47996877,113910.0,113900.0,0.62442559]
[1754101001673,0.42716877,113910.0,113900.0,0.62442559]
[1754101003193,0.42716877,113910.0,113900.0,0.62642559]
[1754101007129,0.42716877,113910.0,113900.0,0.03571]
[1754101007361,0.42716877,113910.0,113900.0,0.62642559]
[1754101010081,0.42716877,113910.0,113900.0,0.03571]
[1754101016453,0.51136866,113910.0,113900.0,0.03571]
[1754101019668,1.10208425,113910.0,113900.0,0.03075]
[1754101020274,0.42716877,113910.0,113900.0,0.03075]
[1754101020487,1.01788436,113910.0,113900.0,0.03075]
[1754101021755,0.42716877,113910.0,113900.0,0.03075]
[1754101022471,1.01788436,113910.0,113900.0,0.03075]
[1754101022689,1.01788436,113910.0,113900.0,0.002]
[1754101022908,2.03646984,113910.0,113900.0,0.002]
[1754101023754,1.44575425,113910.0,113900.0,0.002]
[1754101024376,1.44575425,113910.0,113900.0,0.001]
[1754101025762,0.17559262,113900.0,113890.0,0.03167]
[1754101025991,0.9858981,113900.0,113890.0,0.03461]
[1754101026191,0.9858981,113900.0,113890.0,0.03659]
[1754101026957,1.0122891,113900.0,113890.0,0.03659]
[1754101028458,1.0122891,113900.0,113890.0,0.03759]
[1754101031863,1.43648899,113900.0,113890.0,0.03759]
[1754101033644,1.3522891,113900.0,113890.0,0.03759]
[1754101049726,0.76157351,113900.0,113890.0,0.03759]
[1754101052857,1.3522891,113900.0,113890.0,0.03759]
[1754101055686,0.76157351,113900.0,113890.0,0.03759]
[1754101067553,1.3522891,113900.0,113890.0,0.03465]
[1754101067797,1.43648899,113900.0,113890.0,0.03267]
[1754101069392,1.3522891,113900.0,113890.0,0.03267]
[1754101069823,1.52219812,113900.0,113890.0,0.001]
[1754101070048,1.52230812,113900.0,113890.0,0.001]
[1754101070882,1.74410271,113900.0,113890.0,0.001]
[1754101071503,1.74409245,113900.0,113890.0,0.001]
[1754101071709,0.19305706,113890.0,113880.0,0.02008417]
[1754101071921,1.00574254,113890.0,113880.0,0.02008417]
[1754101072266,1.03213954,113890.0,113880.0,0.02008417]
[1754101073239,1.03224954,113890.0,113880.0,0.02008417]
[1754101074812,1.03324954,113890.0,113880.0,0.02008417]
[1754101075054,1.09218619,113890.0,113880.0,0.02008417]
[1754101080716,0.5014706,113890.0,113880.0,0.02008417]
[1754101080936,1.09218619,113890.0,113880.0,0.02008417]
[1754101081514,1.14498619,113890.0,113880.0,0.02008417]
[1754101081929,1.14487619,113890.0,113880.0,0.02008417]
[1754101082355,1.15337619,113890.0,113880.0,0.02008417]
[1754101082789,0.5582106,113890.0,113880.0,0.05523417]
[1754101082985,1.14892619,113890.0,113880.0,0.05523417]
[1754101083659,1.15089619,113890.0,113880.0,0.05523417]
[1754101084018,1.15089619,113890.0,113880.0,0.07523417]
[1754101084610,1.15089619,113890.0,113880.0,0.07138417]
[1754101084803,1.15336619,113890.0,113880.0,0.04117417]
[1754101086263,1.15089619,113890.0,113880.0,0.07138417]
[1754101086478,1.09809619,113890.0,113880.0,0.07138417]
[1754101088208,1.09809619,113890.0,113880.0,0.04117417]
[1754101088384,1.10056619,113890.0,113880.0,0.04117417]
[1754101090021,1.09809619,113890.0,113880.0,0.07138417]
[1754101090956,1.43809619,113890.0,113880.0,0.07138417]
[1754101096408,1.49089619,113890.0,113880.0,0.07138417]
[1754101096823,1.49089619,113890.0,113880.0,0.04117417]
[1754101097033,1.49336619,113890.0,113880.0,0.04117417]
[1754101098723,1.48486619,113890.0,113880.0,0.04117417]
[1754101099045,1.48486619,113890.0,113880.0,0.07138417]
[1754101099321,1.50384665,113890.0,113880.0,0.07138417]
[1754101099681,1.50137665,113890.0,113880.0,0.07138417]
[1754101101948,0.91066106,113890.0,113880.0,0.07138417]
[1754101102126,1.50137665,113890.0,113880.0,0.07138417]
[1754101103687,1.29259542,113890.0,113880.0,0.07138417]
[1754101104016,1.46820346,113890.0,113880.0,0.07138417]
[1754101105838,1.48565248,113890.0,113880.0,0.07138417]
[1754101109103,1.49939355,113890.0,113880.0,0.07138417]
[1754101110049,0.66563888,113870.0,113860.0,0.033599]
[1754101110228,1.56001425,113870.0,113860.0,0.03580689]
[1754101110781,1.60015831,113870.0,113860.0,0.03580689]
[1754101111196,1.60015831,113870.0,113860.0,0.03880689]
[1754101111826,1.60015831,113870.0,113860.0,0.03780689]
[1754101112278,1.61760733,113870.0,113860.0,0.03780689]
[1754101112687,1.67287733,113870.0,113860.0,0.00211689]
[1754101112956,1.69551177,113870.0,113860.0,0.00211689]
[1754101113192,1.69026971,113870.0,113860.0,0.00011689]
[1754101113414,1.70925135,113870.0,113860.0,0.00011689]
[1754101113624,1.70925135,113870.0,113860.0,0.00111689]
[1754101113840,1.70925135,113870.0,113860.0,0.00011689]
[1754101114263,1.73664021,113870.0,113860.0,0.00011689]
[1754101114624,1.14592462,113870.0,113860.0,0.00011689]
[1754101114830,1.73664021,113870.0,113860.0,0.00011689]
[1754101115220,1.14592462,113870.0,113860.0,0.03041689]
[1754101115434,1.12447298,113870.0,113860.0,0.03041689]
[1754101115635,1.71518857,113870.0,113860.0,0.03041689]
[1754101116085,1.72893222,113870.0,113860.0,0.03041689]
[1754101116860,1.68407167,113870.0,113860.0,0.03041689]
[1754101124373,1.67557167,113870.0,113860.0,0.03041689]
[1754101124856,1.70303167,113870.0,113860.0,0.00011689]
[1754101125664,1.70303167,113870.0,113860.0,0.03041689]
[1754101125877,1.70057167,113870.0,113860.0,0.03041689]
[1754101126079,0.32568517,113840.0,113830.0,0.09004334]
[1754101126283,0.59330187,113840.0,113830.0,0.09220334]
[1754101126698,0.61970987,113840.0,113830.0,0.67158838]
[1754101127317,0.61970987,113840.0,113830.0,0.67358838]
[1754101127748,0.61970987,113840.0,113830.0,0.67758838]
[1754101128315,0.61970987,113840.0,113830.0,0.60754504]
[1754101128491,1.11970987,113840.0,113830.0,0.60754504]
[1754101128963,2.04808923,113840.0,113830.0,0.05969]
[1754101129166,2.222925,113840.0,113830.0,0.06069]
[1754101129595,2.222925,113840.0,113830.0,0.05969]
[1754101130000,1.723925,113840.0,113830.0,0.05569]
[1754101130211,1.723925,113840.0,113830.0,0.05769]
[1754101130409,1.17706996,113840.0,113830.0,0.05769]
[1754101130621,1.723925,113840.0,113830.0,0.05569]
[1754101132168,1.73767098,113840.0,113830.0,0.05569]
[1754101132614,1.58569098,113840.0,113830.0,0.05569]
[1754101133228,1.571945,113840.0,113830.0,0.05569]
[1754101133679,0.67522413,113840.0,113830.0,0.60154504]
[1754101133934,0.65038836,113840.0,113830.0,0.67158838]
[1754101134153,0.31038836,113840.0,113830.0,0.67158838]
[1754101134375,0.41726036,113840.0,113830.0,0.67158838]
[1754101135278,0.41626036,113840.0,113830.0,0.67158838]
[1754101135493,0.41626036,113840.0,113830.0,0.67258838]
[1754101136173,0.41626036,113840.0,113830.0,0.60254504]
[1754101136767,0.41626036,113840.0,113830.0,0.05669]
[1754101136995,0.41626036,113840.0,113830.0,0.54183274]
[1754101138303,0.49394519,113840.0,113830.0,0.54183274]
[1754101139141,0.49394519,113840.0,113830.0,0.05669]
[1754101140692,0.51718955,113840.0,113830.0,0.05669]
[1754101142210,0.51916955,113840.0,113830.0,0.05669]
[1754101143529,0.85916955,113840.0,113830.0,0.05669]
[1754101143791,0.88557655,113840.0,113830.0,0.05669]
[1754101148716,1.38816831,113840.0,113830.0,0.021]
[1754101148932,1.39063831,113840.0,113830.0,0.021]
[1754101149176,1.54063831,113840.0,113830.0,0.021]
[1754101149635,1.05549557,113840.0,113830.0,0.021]
[1754101149855,1.05549557,113840.0,113830.0,0.04926]
[1754101150447,1.05302557,113840.0,113830.0,0.04926]
[1754101150882,0.87062677,113840.0,113830.0,0.04926]
[1754101151111,0.17574048,113810.0,113790.0,0.0002]
[1754101151357,0.30898692,113800.0,113790.0,0.00326]
[1754101151638,0.30898692,113800.0,113790.0,0.49051274]
[1754101152073,0.33362581,113800.0,113790.0,0.49051274]
[1754101152283,0.33362581,113800.0,113790.0,0.51977274]
[1754101152503,0.33362581,113800.0,113790.0,0.03710949]
[1754101152731,0.36305128,113800.0,113790.0,0.03710949]
[1754101152941,0.36305128,113800.0,113790.0,0.04110949]
[1754101153354,0.36305128,113800.0,113790.0,0.03710949]
[1754101153561,0.36305128,113800.0,113790.0,0.04210949]
[1754101153774,0.36305128,113800.0,113790.0,0.03710949]
[1754101154398,0.36305128,113800.0,113790.0,0.04010949]
[1754101154979,0.36305128,113800.0,113790.0,0.03710949]
[1754101155241,0.36305128,113800.0,113790.0,0.03810949]
[1754101155900,0.33362581,113800.0,113790.0,0.03810949]
[1754101156115,0.36003808,113800.0,113790.0,0.52325223]
[1754101163377,0.36201808,113800.0,113790.0,0.00367949]
[1754101163789,0.36201808,113800.0,113790.0,0.03293949]
[1754101163997,0.42228466,113800.0,113790.0,0.03293949]
[1754101164168,0.50648455,113800.0,113790.0,0.03293949]
[1754101164694,0.53289955,113800.0,113790.0,0.03293949]
[1754101168699,0.53289955,113800.0,113790.0,0.00367949]
[1754101168897,0.89280857,113800.0,113790.0,0.00367949]
[1754101169111,0.86816968,113800.0,113790.0,0.00367949]
[1754101169755,0.86816968,113800.0,113790.0,0.00267949]
[1754101169963,0.86916968,113800.0,113790.0,0.00067949]
[1754101170994,0.89394172,113800.0,113790.0,0.00067949]
[1754101171575,0.94674172,113800.0,113790.0,0.00067949]
[1754101171960,0.9604929,113800.0,113790.0,0.00067949]
[1754101173178,0.94674172,113800.0,113790.0,0.00067949]
[1754101173392,0.94674172,113800.0,113790.0,0.03017949]
[1754101173944,0.94428172,113800.0,113790.0,0.03017949]
[1754101174182,0.91950968,113800.0,113790.0,0.03017949]
[1754101176252,0.93326072,113800.0,113790.0,0.03017949]
[1754101176456,0.95803276,113800.0,113790.0,0.03017949]
[1754101181302,0.73601138,113790.0,113770.0,0.0297]
[1754101181505,0.7352777,113780.0,113770.0,0.02978418]
[1754101181707,0.76144476,113780.0,113770.0,0.02978418]
[1754101182142,0.80161965,113780.0,113770.0,0.02978418]
[1754101183078,0.77347259,113780.0,113770.0,0.03694418]
[1754101183289,0.77545259,113780.0,113770.0,0.03694418]
[1754101183498,0.83195309,113780.0,113770.0,0.03694418]
[1754101183918,0.83195309,113780.0,113770.0,0.03494418]
[1754101184339,0.83195309,113780.0,113770.0,0.03594418]
[1754101184526,0.83195309,113780.0,113770.0,0.03694418]
[1754101184896,0.83195309,113780.0,113770.0,0.03594418]
[1754101188952,0.69665309,113780.0,113770.0,0.52108692]
[1754101189156,0.2863997,113780.0,113770.0,0.52108692]
[1754101189407,0.4199997,113780.0,113770.0,0.52108692]
[1754101192035,0.4199997,113780.0,113770.0,0.03594418]
[1754101192214,0.4199997,113780.0,113770.0,0.52108692]
[1754101192962,0.3935777,113780.0,113770.0,0.52108692]
[1754101193145,0.3935777,113780.0,113770.0,0.03594418]
[1754101193540,0.43693197,113780.0,113770.0,0.03594418]
[1754101193973,0.43891197,113780.0,113770.0,0.03078418]
[1754101194372,0.44138197,113780.0,113770.0,0.00128418]
[1754101194720,0.43891197,113780.0,113770.0,0.00128418]
[1754101194848,0.43891197,113780.0,113770.0,0.03126418]
[1754101195077,0.77891197,113780.0,113770.0,0.03126418]
[1754101195283,0.80507903,113780.0,113770.0,0.03126418]
[1754101196694,0.77891197,113780.0,113770.0,0.03126418]
[1754101200927,0.77891197,113780.0,113770.0,0.03442418]
[1754101201308,0.7355577,113780.0,113770.0,0.03639418]
[1754101201981,0.6355577,113780.0,113770.0,0.03639418]
[1754101202386,0.4999777,113780.0,113770.0,0.03639418]
[1754101202607,0.6337377,113780.0,113770.0,0.03639418]
[1754101204583,0.21094653,113800.0,113770.0,0.67797756]
[1754101204812,0.02641227,113800.0,113790.0,0.48514274]
[1754101205075,0.02641227,113800.0,113790.0,0.52025274]
[1754101205271,0.32682705,113810.0,113790.0,0.52025274]
[1754101205516,0.32682705,113810.0,113800.0,0.02998]
[1754101205734,0.59916195,113810.0,113800.0,0.03511]
[1754101205951,0.73300195,113810.0,113800.0,0.03511]
[1754101206171,0.39300195,113810.0,113800.0,0.03511]
[1754101206530,0.73300195,113810.0,113800.0,0.03511]
[1754101207574,0.73300195,113810.0,113780.0,0.00316]
[1754101207575,0.17576236,113790.0,113780.0,0.00316]
[1754101207805,0.17576236,113790.0,113780.0,0.00513]
[1754101207806,0.66042758,113790.0,113780.0,0.00513]
[1754101208009,0.66577781,113780.0,113770.0,0.00028418]
[1754101208216,1.37091044,113780.0,113770.0,0.00028418]
[1754101208493,0.8857677,113780.0,113770.0,0.03539418]
[1754101209275,0.79957781,113780.0,113770.0,0.03539418]
[1754101209489,0.8837777,113780.0,113770.0,0.03539418]
[1754101212765,0.79957781,113780.0,113770.0,0.03539418]
[1754101213975,0.80172781,113780.0,113770.0,0.03026418]
[1754101214612,1.28687055,113780.0,113770.0,0.03026418]
[1754101215195,0.80172781,113780.0,113770.0,0.03026418]
[1754101215811,1.39081946,113780.0,113770.0,0.00028418]
[1754101216031,1.47501935,113780.0,113770.0,0.00028418]
[1754101217897,1.47601935,113780.0,113770.0,0.00028418]
[1754101218072,1.47701935,113780.0,113770.0,0.00028418]
[1754101218501,1.50344335,113780.0,113770.0,0.00028418]
[1754101218965,1.51719741,113780.0,113770.0,0.00028418]
[1754101223025,1.50344335,113780.0,113770.0,0.00028418]
[1754101226121,1.51719726,113780.0,113770.0,0.00028418]
[1754101226896,1.29930926,113780.0,113770.0,0.00028418]
[1754101227077,1.47508707,113780.0,113770.0,0.00028418]
[1754101230384,1.49936274,113780.0,113770.0,0.00028418]
[1754101234196,1.20147293,113780.0,113770.0,0.00028418]
[1754101237081,1.17719726,113780.0,113770.0,0.00028418]
[1754101237642,1.16344335,113780.0,113770.0,0.00028418]
[1754101239535,1.18119772,113780.0,113770.0,0.00028418]
[1754101239947,1.17889772,113780.0,113770.0,0.02842418]
[1754101240287,1.09254783,113780.0,113770.0,0.03349418]
[1754101240492,1.10630183,113780.0,113770.0,0.03349418]
[1754101240828,1.10828183,113780.0,113770.0,0.03349418]
[1754101241127,1.10828183,113780.0,113770.0,0.03053418]
[1754101241552,1.10828183,113780.0,113770.0,0.02842418]
[1754101244179,1.44828183,113780.0,113770.0,0.02842418]
[1754101244386,1.53248172,113780.0,113770.0,0.02842418]
[1754101245387,1.55149092,113780.0,113770.0,0.02842418]
[1754101246668,1.38248172,113780.0,113770.0,0.02842418]
[1754101246879,0.19324228,113770.0,113760.0,0.02834]
[1754101247112,0.48138859,113770.0,113760.0,0.028388]
[1754101247319,0.96653133,113770.0,113760.0,0.028388]
[1754101247735,0.99295733,113770.0,113760.0,0.028388]
[1754101248341,0.99295733,113770.0,113760.0,0.029388]
[1754101248955,1.017233,113770.0,113760.0,0.029388]
[1754101250333,1.025733,113770.0,113760.0,0.029388]
[1754101251973,1.365733,113770.0,113760.0,0.029388]
[1754101252728,1.366733,113770.0,113760.0,0.028388]
[1754101252960,0.88259026,113770.0,113760.0,0.028388]
[1754101253144,1.367733,113770.0,113760.0,0.028388]
[1754101256299,0.81580872,113760.0,113750.0,0.0002]
[1754101256511,2.11938024,113760.0,113750.0,0.0002]
[1754101256721,1.6362975,113760.0,113750.0,0.0002]
[1754101257885,1.6342375,113760.0,113750.0,0.0002]
[1754101258060,1.6606675,113760.0,113750.0,0.0002]
[1754101258286,1.6627275,113760.0,113750.0,0.0002]
[1754101258479,1.6627275,113760.0,113750.0,0.0012]
[1754101258649,1.6627275,113760.0,113750.0,0.0002]
[1754101258865,1.6647275,113760.0,113750.0,0.0002]
[1754101259068,1.6626675,113760.0,113750.0,0.0002]
[1754101260671,1.67642439,113760.0,113750.0,0.0002]
[1754101260901,1.65741071,113760.0,113750.0,0.0002]
[1754101262044,1.65594071,113760.0,113750.0,0.03042]
[1754101263704,0.19327319,113750.0,113740.0,0.00342]
[1754101263959,1.24772104,113750.0,113740.0,0.00545]
[1754101264367,1.27622104,113750.0,113740.0,0.00545]
[1754101265190,1.30181861,113750.0,113740.0,0.00545]
[1754101265392,1.30181861,113750.0,113740.0,0.0002]
[1754101265802,1.30181861,113750.0,113740.0,0.03042]
[1754101268457,1.27622104,113750.0,113740.0,0.03042]
[1754101270461,1.27622104,113750.0,113740.0,0.03364]
[1754101270803,1.26772104,113750.0,113740.0,0.03364]
[1754101272862,0.7825783,113750.0,113740.0,0.03364]
[1754101273235,1.26772104,113750.0,113740.0,0.03567]
[1754101274474,1.27622104,113750.0,113740.0,0.0002]
[1754101274787,1.28530104,113750.0,113740.0,0.0002]
[1754101274951,1.27622104,113750.0,113740.0,0.0002]
[1754101275151,1.31089861,113750.0,113740.0,0.0002]
[1754101275851,1.30427861,113750.0,113740.0,0.0002]
[1754101277919,1.30181861,113750.0,113740.0,0.0002]
[1754101278164,1.30181861,113750.0,113740.0,0.03042]
[1754101278388,0.32583963,113740.0,113730.0,0.02322]
[1754101278566,1.14129972,113740.0,113730.0,0.02525]
[1754101278988,1.15505733,113740.0,113730.0,0.02525]
[1754101279128,1.18148933,113740.0,113730.0,0.02525]
[1754101279797,1.17944933,113740.0,113730.0,0.02625]
[1754101280009,1.17944933,113740.0,113730.0,0.02725]
[1754101280469,1.17944933,113740.0,113730.0,0.05747]
[1754101281605,1.20604442,113740.0,113730.0,0.05747]
[1754101282856,1.18044685,113740.0,113730.0,0.05747]
[1754101287919,1.18894685,113740.0,113730.0,0.05747]
[1754101288939,1.21454442,113740.0,113730.0,0.05747]
[1754101289806,1.21658442,113740.0,113730.0,0.05747]
[1754101291279,1.19098685,113740.0,113730.0,0.05747]
[1754101291770,1.18894685,113740.0,113730.0,0.05747]
[1754101292896,1.25085413,113740.0,113730.0,0.05747]
[1754101293139,1.25289413,113740.0,113730.0,0.05747]
[1754101293348,1.28303413,113740.0,113730.0,0.05747]
[1754101293570,1.26927652,113740.0,113730.0,0.05747]
[1754101293968,1.23913652,113740.0,113730.0,0.05747]
[1754101296735,1.25289439,113740.0,113730.0,0.05747]
[1754101297101,1.27849196,113740.0,113730.0,0.05747]
[1754101298584,1.27849196,113740.0,113720.0,0.0002]
[1754101298585,0.53330411,113730.0,113720.0,0.03292]
[1754101298789,1.36684044,113730.0,113720.0,0.03292]
[1754101298979,1.36888044,113730.0,113720.0,0.03508]
[1754101299351,1.39531544,113730.0,113720.0,0.03508]
[1754101299960,1.39531544,113730.0,113720.0,0.03516396]
[1754101301796,1.39731544,113730.0,113720.0,0.03516396]
[1754101302001,0.85026542,113730.0,113720.0,0.03516396]
[1754101302202,1.39731544,113730.0,113720.0,0.03516396]
[1754101304363,0.85026542,113730.0,113720.0,0.03516396]
[1754101304589,1.39731544,113730.0,113720.0,0.03516396]
[1754101304957,2.00010303,113730.0,113720.0,0.02997396]
[1754101305153,1.45305301,113730.0,113720.0,0.02997396]
[1754101305360,0.68331957,113720.0,113710.0,0.00303]
[1754101305757,0.68331957,113720.0,113710.0,4.79e-05]
[1754101305758,1.54708438,113720.0,113710.0,4.79e-05]
[1754101306255,1.52046938,113720.0,113710.0,0.0327679]
[1754101306455,1.52046938,113720.0,113710.0,0.0349279]
[1754101306904,1.52046938,113720.0,113710.0,0.0359279]
[1754101309985,1.57861695,113720.0,113710.0,0.0010479]
[1754101310421,1.54606695,113720.0,113710.0,0.0010479]
[1754101310670,1.54606695,113720.0,113710.0,0.0307379]
[1754101310854,1.54606695,113720.0,113710.0,0.0337679]
[1754101311668,1.54606695,113720.0,113710.0,0.0327679]
[1754101311669,1.54706695,113720.0,113710.0,0.0327679]
[1754101312085,1.54806695,113720.0,113710.0,0.0327679]
[1754101312440,1.52246938,113720.0,113710.0,0.0327679]
[1754101313693,1.55260938,113720.0,113710.0,0.0297379]
[1754101314725,1.52246938,113720.0,113710.0,0.0327379]
[1754101315390,1.55387938,113720.0,113710.0,0.0297379]
[1754101315606,0.67173034,113720.0,113710.0,0.0347579]
[1754101315826,0.60559544,113720.0,113710.0,0.0347579]
[1754101316081,0.73963544,113720.0,113710.0,0.58180792]
[1754101316317,0.39963544,113720.0,113710.0,0.58180792]
[1754101316733,0.39963544,113720.0,113710.0,0.0347579]
[1754101316959,0.39963544,113720.0,113710.0,0.58180792]
[1754101316960,0.18139555,113720.0,113710.0,0.58180792]
[1754101317174,0.03186331,113720.0,113710.0,0.58180792]
[1754101317394,0.004525,113720.0,113710.0,0.58180792]
[1754101317606,0.001,113720.0,113710.0,0.58180792]
[1754101317822,0.001,113720.0,113710.0,0.0347579]
[1754101318040,0.001,113720.0,113710.0,0.58400649]
[1754101318265,0.001,113720.0,113710.0,0.58180792]
[1754101318481,0.35389984,113730.0,113710.0,0.58180792]
[1754101318731,0.77809973,113730.0,113720.0,0.57886002]
[1754101318931,0.77809973,113730.0,113720.0,0.58088002]
[1754101319305,0.69389984,113730.0,113720.0,0.58088002]
[1754101319859,0.69589984,113730.0,113720.0,0.58088002]
[1754101320049,0.69589984,113730.0,113720.0,0.03383]
[1754101320264,0.69489984,113730.0,113720.0,0.58088002]
[1754101320481,0.69589984,113730.0,113720.0,0.58088002]
[1754101320849,0.72890894,113730.0,113720.0,0.03383]
[1754101322487,0.35589984,113730.0,113720.0,0.03383]
[1754101322938,0.22157984,113730.0,113720.0,0.03383]
[1754101323181,0.35605984,113730.0,113720.0,0.03383]
[1754101324201,0.22157984,113730.0,113720.0,0.03383]
[1754101324403,0.35605984,113730.0,113720.0,0.03383]
[1754101324895,0.38999689,113730.0,113720.0,0.03383]
[1754101325139,0.35566584,113730.0,113720.0,0.03383]
[1754101325359,0.35566584,113730.0,113720.0,0.51999353]
[1754101326182,0.35566584,113730.0,113720.0,0.03383]
[1754101326407,0.18625384,113730.0,113720.0,0.51999353]
[1754101326542,0.32101384,113730.0,113720.0,0.51999353]
[1754101326895,0.18625384,113730.0,113720.0,0.51999353]
[1754101327329,0.18525384,113730.0,113720.0,0.51999353]